[Event "*** Titled Tuesday Blitz"]
[Site "Chess.com"]
[Date "2020.05.05"]
[Round "6"]
[White "Firegrizzly"]
[Black "Sanan_Sjugirov"]
[Result "1/2-1/2"]
[WhiteElo "2672"]
[BlackElo "2853"]
[TimeControl "180+1"]
[EndTime "11:08:44 PDT"]
[Termination "Game drawn by agreement"]

1. e4 {[%clk 0:03:00.9]} 1... c5 {[%clk 0:02:59.1]} 2. Nf3 {[%clk 0:03:00.5]}
2... d6 {[%clk 0:02:58.9]} 3. Bb5+ {[%clk 0:03:00.1]} 3... Bd7 {[%clk
0:02:58.7]} 4. c4 {[%clk 0:02:59.3]} 4... Nf6 {[%clk 0:02:57.9]} 5. Nc3 {[%clk
0:02:59.1]} 5... g6 {[%clk 0:02:57.4]} 6. d4 {[%clk 0:02:58.7]} 6... cxd4 {[%clk
0:02:57.2]} 7. Nxd4 {[%clk 0:02:59.1]} 7... Bg7 {[%clk 0:02:57.1]} 8. Be3 {[%clk
0:02:59.1]} 8... O-O {[%clk 0:02:56.6]} 9. f3 {[%clk 0:02:58.5]} 9... a6 {[%clk
0:02:54.5]} 10. Bxd7 {[%clk 0:02:56]} 10... Qxd7 {[%clk 0:02:55]} 11. O-O {[%clk
0:02:54.5]} 11... Nc6 {[%clk 0:02:55.1]} 12. Rc1 {[%clk 0:02:52.5]} 12... Nxd4
{[%clk 0:02:44.5]} 13. Bxd4 {[%clk 0:02:51.7]} 13... b5 {[%clk 0:02:44.7]} 14.
c5 {[%clk 0:02:44]} 14... dxc5 {[%clk 0:02:40.5]} 15. Bxc5 {[%clk 0:02:42.1]}
15... Qb7 {[%clk 0:02:40.2]} 16. Qb3 {[%clk 0:02:36.5]} 16... Rac8 {[%clk
0:02:35.9]} 17. Bf2 {[%clk 0:02:34.4]} 17... Nd7 {[%clk 0:02:09.6]} 18. Nd5
{[%clk 0:02:30.3]} 18... Ne5 {[%clk 0:02:07.2]} 19. Qa3 {[%clk 0:02:14.2]} 19...
Bf6 {[%clk 0:01:56.7]} 20. Nxf6+ {[%clk 0:02:10]} 20... exf6 {[%clk 0:01:56.7]}
21. Qe3 {[%clk 0:02:01.5]} 21... Rfd8 {[%clk 0:01:51.6]} 22. b3 {[%clk
0:01:55.9]} 22... Nd3 {[%clk 0:01:43]} 23. Rxc8 {[%clk 0:01:53.8]} 23... Qxc8
{[%clk 0:01:43.9]} 24. Rd1 {[%clk 0:01:53]} 24... Nb4 {[%clk 0:01:30.7]} 25.
Rxd8+ {[%clk 0:01:49.2]} 25... Qxd8 {[%clk 0:01:31.6]} 26. Qe2 {[%clk
0:01:42.1]} 26... Kg7 {[%clk 0:00:51.8]} 27. h4 {[%clk 0:01:40.5]} 27... h5
{[%clk 0:00:50.2]} 28. Bc5 {[%clk 0:01:35.8]} 28... Nc6 {[%clk 0:00:45.2]} 29.
a3 {[%clk 0:01:26]} 29... Ne5 {[%clk 0:00:43.6]} 30. Be3 {[%clk 0:01:15.6]}
30... Qd6 {[%clk 0:00:42.6]} 31. a4 {[%clk 0:01:10]} 31... Qb4 {[%clk
0:00:42.4]} 32. axb5 {[%clk 0:01:09.2]} 32... axb5 {[%clk 0:00:43.3]} 33. Qd1
{[%clk 0:01:07.2]} 33... Qa3 {[%clk 0:00:19.7]} 34. Qd5 {[%clk 0:00:58.3]} 34...
Qa1+ {[%clk 0:00:18.4]} 35. Kh2 {[%clk 0:00:55.3]} 35... Qe1 {[%clk 0:00:18.3]}
36. Bd4 {[%clk 0:00:48]} 36... Qxh4+ {[%clk 0:00:18.1]} 37. Kg1 {[%clk
0:00:48.7]} 37... Qe1+ {[%clk 0:00:18.3]} 38. Kh2 {[%clk 0:00:48.8]} 38... Qh4+
{[%clk 0:00:13.4]} 39. Kg1 {[%clk 0:00:48.3]} 39... Qg5 {[%clk 0:00:14]} 40. Kf1
{[%clk 0:00:39.8]} 40... h4 {[%clk 0:00:11.3]} 41. Qxb5 {[%clk 0:00:36.9]} 41...
Qc1+ {[%clk 0:00:10.8]} 42. Ke2 {[%clk 0:00:31.9]} 42... Qc2+ {[%clk 0:00:11]}
43. Ke3 {[%clk 0:00:26.5]} 43... Qc1+ {[%clk 0:00:11]} 44. Ke2 {[%clk 0:00:26]}
44... Qc2+ {[%clk 0:00:11.4]} 45. Ke3 {[%clk 0:00:26.2]} 45... Qxg2 {[%clk
0:00:07]} 46. Bxe5 {[%clk 0:00:26.1]} 46... fxe5 {[%clk 0:00:06]} 47. Qxe5+
{[%clk 0:00:24.9]} 47... Kh7 {[%clk 0:00:06.3]} 48. Qf6 {[%clk 0:00:24.5]} 48...
Qg1+ {[%clk 0:00:05.8]} 49. Ke2 {[%clk 0:00:23.3]} 49... Qg2+ {[%clk 0:00:06]}
50. Ke3 {[%clk 0:00:22.4]} 50... Qg1+ {[%clk 0:00:06.5]} 51. Ke2 {[%clk
0:00:22.4]} 51... Qh2+ {[%clk 0:00:07.1]} 52. Ke3 {[%clk 0:00:20.8]} 52... Kg8
{[%clk 0:00:07.5]} 53. e5 {[%clk 0:00:19.9]} 53... Qg1+ {[%clk 0:00:07.3]} 54.
Ke2 {[%clk 0:00:19.9]} 54... Qg2+ {[%clk 0:00:07.3]} 55. Ke3 {[%clk 0:00:19.2]}
55... h3 {[%clk 0:00:08.2]} 56. e6 {[%clk 0:00:17.9]} 56... Qg1+ {[%clk
0:00:08.6]} 57. Ke2 {[%clk 0:00:17.5]} 57... Qh2+ {[%clk 0:00:08.8]} 58. Ke3
{[%clk 0:00:16.3]} 58... Qg1+ {[%clk 0:00:09]} 59. Ke2 {[%clk 0:00:16.1]} 59...
Qg2+ {[%clk 0:00:09.4]} 60. Ke3 {[%clk 0:00:15.9]} 60... fxe6 {[%clk 0:00:09.6]}
61. Qxe6+ {[%clk 0:00:14.8]} 61... Kg7 {[%clk 0:00:10.5]} 62. Qe7+ {[%clk
0:00:15.3]} 62... Kg8 {[%clk 0:00:10.8]} 63. Qd8+ {[%clk 0:00:14.4]} 63... Kg7
{[%clk 0:00:11.7]} 64. Qe7+ {[%clk 0:00:14.6]} 1/2-1/2

[Event "*** Titled Tuesday Blitz"]
[Site "Chess.com"]
[Date "2020.05.05"]
[Round "6"]
[White "MathiasWomacka"]
[Black "Borsuk_Konstantin"]
[Result "0-1"]
[WhiteElo "2448"]
[BlackElo "2631"]
[TimeControl "180+1"]
[EndTime "11:08:44 PDT"]
[Termination "Borsuk_Konstantin won by resignation"]

1. e4 {[%clk 0:03:00.9]} 1... e6 {[%clk 0:02:58.5]} 2. d4 {[%clk 0:03:00.4]}
2... d5 {[%clk 0:02:59.1]} 3. Nd2 {[%clk 0:03:00.6]} 3... Nf6 {[%clk 0:02:58.6]}
4. e5 {[%clk 0:03:00.6]} 4... Nfd7 {[%clk 0:02:59.4]} 5. Bd3 {[%clk 0:03:00.3]}
5... c5 {[%clk 0:03:00]} 6. c3 {[%clk 0:03:00]} 6... Nc6 {[%clk 0:03:00.4]} 7.
Ne2 {[%clk 0:02:59.7]} 7... b6 {[%clk 0:02:59.9]} 8. Nf3 {[%clk 0:02:55.1]} 8...
h6 {[%clk 0:02:53.1]} 9. O-O {[%clk 0:02:52.7]} 9... cxd4 {[%clk 0:02:51.9]} 10.
cxd4 {[%clk 0:02:52.3]} 10... Nb4 {[%clk 0:02:52.3]} 11. Bb1 {[%clk 0:02:51.9]}
11... Ba6 {[%clk 0:02:52.5]} 12. Re1 {[%clk 0:02:44.6]} 12... Qc7 {[%clk
0:02:49.7]} 13. a3 {[%clk 0:02:27.5]} 13... Nc6 {[%clk 0:02:49.5]} 14. Nf4
{[%clk 0:02:20.4]} 14... O-O-O {[%clk 0:02:48.6]} 15. b4 {[%clk 0:02:06.6]}
15... Bc4 {[%clk 0:02:47]} 16. Be3 {[%clk 0:02:00.6]} 16... b5 {[%clk
0:02:46.5]} 17. Nd2 {[%clk 0:01:46.7]} 17... Nb6 {[%clk 0:02:41.6]} 18. Nb3
{[%clk 0:01:26.3]} 18... Na4 {[%clk 0:02:18.5]} 19. Nc5 {[%clk 0:01:25.4]} 19...
Bxc5 {[%clk 0:02:14.2]} 20. bxc5 {[%clk 0:01:23.3]} 20... Nc3 {[%clk 0:01:57]}
21. Qd2 {[%clk 0:01:06.4]} 21... Nxb1 {[%clk 0:01:51.9]} 22. Raxb1 {[%clk
0:01:06.6]} 22... g6 {[%clk 0:01:48.7]} 23. Nd3 {[%clk 0:00:59.4]} 23... h5
{[%clk 0:01:38.6]} 24. Nb4 {[%clk 0:00:56.5]} 24... Nxb4 {[%clk 0:01:28]} 25.
axb4 {[%clk 0:00:57.4]} 25... Kb7 {[%clk 0:01:24.9]} 26. Ra1 {[%clk 0:00:57.1]}
26... a6 {[%clk 0:01:24.9]} 27. Bg5 {[%clk 0:00:56]} 27... Ra8 {[%clk 0:01:24]}
28. Ra3 {[%clk 0:00:53.6]} 28... Ra7 {[%clk 0:01:18.4]} 29. h4 {[%clk 0:00:53]}
29... Rha8 {[%clk 0:01:18.2]} 30. Rea1 {[%clk 0:00:51.1]} 30... a5 {[%clk
0:01:10.1]} 31. bxa5 {[%clk 0:00:47.9]} 31... Ka6 {[%clk 0:01:09.4]} 32. Qb4
{[%clk 0:00:45.6]} 32... Qc6 {[%clk 0:01:05.2]} 33. Be7 {[%clk 0:00:44.3]} 33...
Rxe7 {[%clk 0:01:04.2]} 34. Qd2 {[%clk 0:00:41.2]} 34... Rb7 {[%clk 0:01:03]}
35. Qb4 {[%clk 0:00:40.9]} 35... Qe8 {[%clk 0:01:01.2]} 36. Rf3 {[%clk
0:00:40.4]} 36... Qe7 {[%clk 0:00:59.2]} 37. Rf6 {[%clk 0:00:38.7]} 37... Rba7
{[%clk 0:00:58.8]} 38. Ra3 {[%clk 0:00:38.3]} 38... Kb7 {[%clk 0:00:58.2]} 39.
Raf3 {[%clk 0:00:37.3]} 39... Kc6 {[%clk 0:00:57.2]} 40. Kh2 {[%clk 0:00:34.6]}
40... Rf8 {[%clk 0:00:52.9]} 41. Kh3 {[%clk 0:00:32.9]} 41... Be2 {[%clk
0:00:51.8]} 42. Re3 {[%clk 0:00:27.3]} 42... Bg4+ {[%clk 0:00:48.3]} 43. Kg3
{[%clk 0:00:27.1]} 43... Qc7 {[%clk 0:00:38.4]} 44. f3 {[%clk 0:00:22]} 44...
Bf5 {[%clk 0:00:37.7]} 45. Kf4 {[%clk 0:00:21.5]} 45... Rxa5 {[%clk 0:00:33.1]}
46. g4 {[%clk 0:00:20.8]} 46... Ra4 {[%clk 0:00:30.8]} 47. Qb2 {[%clk
0:00:18.9]} 47... hxg4 {[%clk 0:00:30.4]} 48. fxg4 {[%clk 0:00:18.5]} 48... Be4
{[%clk 0:00:30.1]} 49. Rb3 {[%clk 0:00:18.1]} 49... Qa5 {[%clk 0:00:29.7]} 50.
h5 {[%clk 0:00:15.9]} 50... gxh5 {[%clk 0:00:28]} 51. gxh5 {[%clk 0:00:16.8]}
51... Bf5 {[%clk 0:00:25.7]} 52. Rg3 {[%clk 0:00:14.2]} 52... Ra2 {[%clk
0:00:23.3]} 53. Qc1 {[%clk 0:00:13.2]} 53... Qd2+ {[%clk 0:00:16.3]} 54. Qxd2
{[%clk 0:00:12.4]} 54... Rxd2 {[%clk 0:00:15.8]} 55. Rg7 {[%clk 0:00:11]} 55...
Rxd4+ {[%clk 0:00:15.6]} 56. Ke3 {[%clk 0:00:11.2]} 56... Re4+ {[%clk
0:00:15.1]} 57. Kd2 {[%clk 0:00:11.3]} 57... Rxe5 {[%clk 0:00:13.3]} 58. Rfxf7
{[%clk 0:00:10.8]} 58... Rxf7 {[%clk 0:00:13.4]} 59. Rxf7 {[%clk 0:00:11.7]}
59... Re4 {[%clk 0:00:13.3]} 0-1

[Event "*** Titled Tuesday Blitz"]
[Site "Chess.com"]
[Date "2020.05.05"]
[Round "6"]
[White "GOGIEFF"]
[Black "mrkvoz"]
[Result "1/2-1/2"]
[WhiteElo "2998"]
[BlackElo "2825"]
[TimeControl "180+1"]
[EndTime "11:08:49 PDT"]
[Termination "Game drawn by agreement"]

1. d4 {[%clk 0:03:00.5]} 1... d6 {[%clk 0:03:00.2]} 2. c4 {[%clk 0:02:58.9]}
2... e5 {[%clk 0:02:59.4]} 3. Nf3 {[%clk 0:02:58.2]} 3... e4 {[%clk 0:02:58.7]}
4. Nfd2 {[%clk 0:02:54.8]} 4... f5 {[%clk 0:02:58.5]} 5. Nc3 {[%clk 0:02:54]}
5... Nf6 {[%clk 0:02:58.6]} 6. e3 {[%clk 0:02:53.4]} 6... g6 {[%clk 0:02:58.3]}
7. b4 {[%clk 0:02:52.2]} 7... Bg7 {[%clk 0:02:58.2]} 8. Qb3 {[%clk 0:02:47.9]}
8... c5 {[%clk 0:02:57]} 9. bxc5 {[%clk 0:02:29]} 9... dxc5 {[%clk 0:02:57.9]}
10. Qb5+ {[%clk 0:02:26.1]} 10... Nbd7 {[%clk 0:02:57.1]} 11. Ba3 {[%clk
0:02:25]} 11... a6 {[%clk 0:02:45.8]} 12. Qb2 {[%clk 0:02:23.8]} 12... O-O
{[%clk 0:02:43.5]} 13. Nb3 {[%clk 0:02:22.6]} 13... b6 {[%clk 0:02:42.5]} 14.
Rd1 {[%clk 0:02:19.3]} 14... Qc7 {[%clk 0:02:40]} 15. Be2 {[%clk 0:02:05.2]}
15... Re8 {[%clk 0:02:37.1]} 16. O-O {[%clk 0:02:02.9]} 16... cxd4 {[%clk
0:02:17]} 17. Nxd4 {[%clk 0:02:00]} 17... Nc5 {[%clk 0:01:43.9]} 18. Rb1 {[%clk
0:01:52.2]} 18... Rb8 {[%clk 0:01:35]} 19. Nd5 {[%clk 0:01:39.8]} 19... Nxd5
{[%clk 0:01:34.1]} 20. cxd5 {[%clk 0:01:40.7]} 20... Bd7 {[%clk 0:01:32.7]} 21.
Rfc1 {[%clk 0:01:36.3]} 21... f4 {[%clk 0:01:21.9]} 22. Qd2 {[%clk 0:01:28.5]}
22... fxe3 {[%clk 0:01:18.7]} 23. Qxe3 {[%clk 0:01:21.2]} 23... Qd6 {[%clk
0:01:04.3]} 24. Nb3 {[%clk 0:01:15.3]} 24... Kh8 {[%clk 0:00:59.7]} 25. Nxc5
{[%clk 0:01:10.7]} 25... bxc5 {[%clk 0:01:00.2]} 26. Qxc5 {[%clk 0:01:10.7]}
26... Qe5 {[%clk 0:00:29.8]} 27. Rxb8 {[%clk 0:01:07.5]} 27... Rxb8 {[%clk
0:00:30.7]} 28. d6 {[%clk 0:01:01]} 28... Qxc5 {[%clk 0:00:16.1]} 29. Bxc5
{[%clk 0:01:00.1]} 29... Rb2 {[%clk 0:00:16.1]} 30. Bc4 {[%clk 0:00:58.8]} 30...
Rd2 {[%clk 0:00:15.5]} 31. Bb3 {[%clk 0:00:46.3]} 31... Be5 {[%clk 0:00:14.5]}
32. Rd1 {[%clk 0:00:46.4]} 32... Rxd1+ {[%clk 0:00:13.3]} 33. Bxd1 {[%clk
0:00:47.3]} 33... Kg7 {[%clk 0:00:13.9]} 34. Be2 {[%clk 0:00:45.8]} 34... a5
{[%clk 0:00:13.3]} 35. Bc4 {[%clk 0:00:45.3]} 35... Kf6 {[%clk 0:00:13.7]} 36.
g3 {[%clk 0:00:45.7]} 36... Be6 {[%clk 0:00:14.2]} 37. Bb5 {[%clk 0:00:45.9]}
37... Bxa2 {[%clk 0:00:12.6]} 38. d7 {[%clk 0:00:45.8]} 38... Bc7 {[%clk
0:00:13.4]} 39. Ba4 {[%clk 0:00:39.1]} 39... Bd5 {[%clk 0:00:12.1]} 40. Kf1
{[%clk 0:00:39.1]} 40... Ke6 {[%clk 0:00:12.5]} 41. Ke2 {[%clk 0:00:38.4]} 41...
Ke5 {[%clk 0:00:08.5]} 42. Ke3 {[%clk 0:00:37.8]} 42... Ke6 {[%clk 0:00:07.8]}
43. h4 {[%clk 0:00:36.8]} 43... h5 {[%clk 0:00:07.2]} 44. Bd1 {[%clk 0:00:35.9]}
44... Kxd7 {[%clk 0:00:06.3]} 45. Ba4+ {[%clk 0:00:33.7]} 45... Ke6 {[%clk
0:00:06.8]} 46. Be8 {[%clk 0:00:34.2]} 46... Kf6 {[%clk 0:00:06.2]} 47. Bd4+
{[%clk 0:00:33]} 47... Be5 {[%clk 0:00:06.5]} 48. Bb6 {[%clk 0:00:33.2]} 48...
Bc3 {[%clk 0:00:04.5]} 49. Bd8+ {[%clk 0:00:32.5]} 49... Kg7 {[%clk 0:00:05.4]}
50. Ba4 {[%clk 0:00:31.1]} 50... Bf6 {[%clk 0:00:05]} 51. Bxa5 {[%clk
0:00:30.2]} 51... Be6 {[%clk 0:00:04.6]} 52. Kxe4 {[%clk 0:00:29.5]} 52... Bf5+
{[%clk 0:00:05.5]} 53. Ke3 {[%clk 0:00:29.7]} 53... Bg4 {[%clk 0:00:06.4]} 54.
Bb6 {[%clk 0:00:28.7]} 54... Bf5 {[%clk 0:00:07.3]} 55. Bc7 {[%clk 0:00:27.5]}
55... Be6 {[%clk 0:00:07.6]} 56. Kf4 {[%clk 0:00:27.3]} 56... Bf5 {[%clk
0:00:07.7]} 57. Be5 {[%clk 0:00:26.4]} 57... Be6 {[%clk 0:00:07.7]} 58. Bc6
{[%clk 0:00:25.3]} 58... Bf7 {[%clk 0:00:07.7]} 59. Be4 {[%clk 0:00:25.4]} 59...
Be6 {[%clk 0:00:07.8]} 60. f3 {[%clk 0:00:25.1]} 60... Bf7 {[%clk 0:00:08]} 61.
g4 {[%clk 0:00:25.5]} 61... hxg4 {[%clk 0:00:08.9]} 62. fxg4 {[%clk 0:00:26.1]}
62... Be6 {[%clk 0:00:09.5]} 63. g5 {[%clk 0:00:24]} 63... Bxe5+ {[%clk
0:00:09.6]} 64. Kxe5 {[%clk 0:00:24.9]} 64... Ba2 {[%clk 0:00:10.1]} 65. Kd6
{[%clk 0:00:24.2]} 65... Bb3 {[%clk 0:00:10.4]} 66. Ke7 {[%clk 0:00:24.7]} 66...
Ba2 {[%clk 0:00:10.7]} 67. Bc6 {[%clk 0:00:25.1]} 67... Bb3 {[%clk 0:00:10.7]}
68. Bd7 {[%clk 0:00:25.7]} 68... Ba2 {[%clk 0:00:10.9]} 69. Be6 {[%clk 0:00:26]}
69... Bb1 {[%clk 0:00:11.2]} 70. Kd6 {[%clk 0:00:26.3]} 70... Bc2 {[%clk
0:00:11.5]} 71. Ke5 {[%clk 0:00:26.5]} 71... Bd3 {[%clk 0:00:11.6]} 1/2-1/2

[Event "*** Titled Tuesday Blitz"]
[Site "Chess.com"]
[Date "2020.05.05"]
[Round "6"]
[White "Lion-Al-Messi"]
[Black "swisspower96"]
[Result "1/2-1/2"]
[WhiteElo "2433"]
[BlackElo "2600"]
[TimeControl "180+1"]
[EndTime "11:08:49 PDT"]
[Termination "Game drawn by repetition"]

1. d4 {[%clk 0:03:00.9]} 1... Nf6 {[%clk 0:02:58.1]} 2. Nf3 {[%clk 0:03:01.2]}
2... e6 {[%clk 0:02:56.3]} 3. Nc3 {[%clk 0:03:01.6]} 3... d5 {[%clk 0:02:56]} 4.
Bg5 {[%clk 0:03:02]} 4... Be7 {[%clk 0:02:53.4]} 5. e3 {[%clk 0:02:59.6]} 5...
O-O {[%clk 0:02:53]} 6. Bd3 {[%clk 0:02:59.2]} 6... Nbd7 {[%clk 0:02:53.3]} 7.
O-O {[%clk 0:02:57.1]} 7... c5 {[%clk 0:02:53.6]} 8. Re1 {[%clk 0:02:49.4]} 8...
c4 {[%clk 0:02:51.4]} 9. Bf1 {[%clk 0:02:47.9]} 9... b5 {[%clk 0:02:42.8]} 10.
a3 {[%clk 0:02:45.8]} 10... a5 {[%clk 0:02:37.1]} 11. Nxb5 {[%clk 0:02:39.6]}
11... Rb8 {[%clk 0:02:36.9]} 12. a4 {[%clk 0:02:39.1]} 12... Ba6 {[%clk
0:02:36.6]} 13. b3 {[%clk 0:02:35.2]} 13... Bxb5 {[%clk 0:02:06.5]} 14. axb5
{[%clk 0:02:36.1]} 14... Bb4 {[%clk 0:01:49.9]} 15. bxc4 {[%clk 0:02:30.8]}
15... Bxe1 {[%clk 0:01:45.7]} 16. Qxe1 {[%clk 0:02:31.7]} 16... dxc4 {[%clk
0:01:44.4]} 17. Bxc4 {[%clk 0:02:32.6]} 17... Nb6 {[%clk 0:01:43]} 18. Bd3
{[%clk 0:02:32.6]} 18... a4 {[%clk 0:01:43.2]} 19. c4 {[%clk 0:02:32.6]} 19...
Ra8 {[%clk 0:01:42]} 20. c5 {[%clk 0:02:31.9]} 20... Nc8 {[%clk 0:01:38.1]} 21.
b6 {[%clk 0:02:30.4]} 21... Nxb6 {[%clk 0:01:36.3]} 22. cxb6 {[%clk 0:02:29.8]}
22... Qxb6 {[%clk 0:01:37.2]} 23. Bxf6 {[%clk 0:02:25.6]} 23... gxf6 {[%clk
0:01:37.4]} 24. Qb1 {[%clk 0:02:23]} 24... Qxb1+ {[%clk 0:01:33.8]} 25. Bxb1
{[%clk 0:02:22]} 25... Rfb8 {[%clk 0:01:33.6]} 26. Kf1 {[%clk 0:02:17.6]} 26...
a3 {[%clk 0:01:32.4]} 27. Ke2 {[%clk 0:02:12]} 27... a2 {[%clk 0:01:27.4]} 28.
Bd3 {[%clk 0:01:54]} 28... Rb2+ {[%clk 0:01:25]} 29. Nd2 {[%clk 0:01:54]} 29...
e5 {[%clk 0:01:16.4]} 30. d5 {[%clk 0:01:53.3]} 30... Kf8 {[%clk 0:01:10.9]} 31.
Bc4 {[%clk 0:01:51.7]} 31... Ra3 {[%clk 0:00:22.1]} 32. Kd1 {[%clk 0:01:49.8]}
32... Ke7 {[%clk 0:00:22.6]} 33. Kc1 {[%clk 0:01:45.8]} 33... Rb4 {[%clk
0:00:22.9]} 34. Kc2 {[%clk 0:01:27.6]} 34... Kd6 {[%clk 0:00:15.2]} 35. Rxa2
{[%clk 0:01:08.2]} 35... Rxa2+ {[%clk 0:00:13.9]} 36. Bxa2 {[%clk 0:01:08.2]}
36... f5 {[%clk 0:00:14.6]} 37. Bb3 {[%clk 0:01:04.8]} 37... Rg4 {[%clk
0:00:11.3]} 38. g3 {[%clk 0:01:04.3]} 38... Rg6 {[%clk 0:00:11.7]} 39. Kd3
{[%clk 0:00:58.6]} 39... Rh6 {[%clk 0:00:12.1]} 40. h4 {[%clk 0:00:57.9]} 40...
Rg6 {[%clk 0:00:12.5]} 41. e4 {[%clk 0:00:39.5]} 41... f4 {[%clk 0:00:10.8]} 42.
Nc4+ {[%clk 0:00:38.8]} 42... Kc5 {[%clk 0:00:11]} 43. d6 {[%clk 0:00:25.2]}
43... fxg3 {[%clk 0:00:09]} 44. d7 {[%clk 0:00:19.6]} 44... gxf2 {[%clk
0:00:07.8]} 45. Ne3 {[%clk 0:00:14.8]} 45... Rd6+ {[%clk 0:00:06.7]} 46. Ke2
{[%clk 0:00:14.5]} 46... Rxd7 {[%clk 0:00:07.1]} 47. Kxf2 {[%clk 0:00:14.3]}
47... Kd4 {[%clk 0:00:07.6]} 48. Bd5 {[%clk 0:00:13.5]} 48... Ra7 {[%clk
0:00:06.9]} 49. Nf5+ {[%clk 0:00:12.9]} 49... Kd3 {[%clk 0:00:06.2]} 50. Kf3
{[%clk 0:00:13]} 50... h5 {[%clk 0:00:05.1]} 51. Nd6 {[%clk 0:00:11.4]} 51... f6
{[%clk 0:00:04.8]} 52. Ne8 {[%clk 0:00:07.6]} 52... Kd4 {[%clk 0:00:04]} 53.
Nxf6 {[%clk 0:00:06.7]} 53... Ra3+ {[%clk 0:00:04.9]} 54. Kf2 {[%clk 0:00:06.3]}
54... Rh3 {[%clk 0:00:04.9]} 55. Nxh5 {[%clk 0:00:04.4]} 55... Rxh4 {[%clk
0:00:05.5]} 56. Ng7 {[%clk 0:00:04.6]} 56... Rf4+ {[%clk 0:00:05.7]} 57. Ke2
{[%clk 0:00:04.7]} 57... Rxe4+ {[%clk 0:00:06.1]} 58. Bxe4 {[%clk 0:00:04.2]}
58... Kxe4 {[%clk 0:00:07]} 59. Nf5 {[%clk 0:00:04]} 59... Kf4 {[%clk
0:00:07.9]} 60. Nd6 {[%clk 0:00:03.7]} 60... Kg5 {[%clk 0:00:07.4]} 61. Ne4+
{[%clk 0:00:03.6]} 61... Kf4 {[%clk 0:00:07.7]} 62. Kd3 {[%clk 0:00:04.5]} 62...
Kf5 {[%clk 0:00:08.5]} 63. Nd2 {[%clk 0:00:04.7]} 63... Kf4 {[%clk 0:00:09.4]}
64. Ne4 {[%clk 0:00:05.6]} 64... Kf3 {[%clk 0:00:09.8]} 65. Nd2+ {[%clk
0:00:06.5]} 65... Kf4 {[%clk 0:00:10.7]} 66. Ne4 {[%clk 0:00:07.4]} 1/2-1/2

[Event "*** Titled Tuesday Blitz"]
[Site "Chess.com"]
[Date "2020.05.05"]
[Round "6"]
[White "AminMolaei"]
[Black "manmanlai1"]
[Result "1-0"]
[WhiteElo "2509"]
[BlackElo "2338"]
[TimeControl "180+1"]
[EndTime "11:08:52 PDT"]
[Termination "AminMolaei won by resignation"]

1. d4 {[%clk 0:03:00.6]} 1... d5 {[%clk 0:02:59.1]} 2. c4 {[%clk 0:03:00.8]}
2... e6 {[%clk 0:02:59.4]} 3. Nf3 {[%clk 0:03:01]} 3... Nf6 {[%clk 0:02:58.4]}
4. g3 {[%clk 0:03:01.5]} 4... Bb4+ {[%clk 0:02:57.2]} 5. Bd2 {[%clk 0:03:01.2]}
5... Be7 {[%clk 0:02:57.6]} 6. Bg2 {[%clk 0:03:01.6]} 6... O-O {[%clk
0:02:55.7]} 7. O-O {[%clk 0:03:02.5]} 7... c6 {[%clk 0:02:56.1]} 8. Qc2 {[%clk
0:03:03.4]} 8... b6 {[%clk 0:02:56.4]} 9. Rd1 {[%clk 0:03:03.8]} 9... Bb7 {[%clk
0:02:56.8]} 10. Bf4 {[%clk 0:03:04.1]} 10... Nbd7 {[%clk 0:02:57.3]} 11. Nbd2
{[%clk 0:03:04.5]} 11... Rc8 {[%clk 0:02:56]} 12. e4 {[%clk 0:03:04.8]} 12... h6
{[%clk 0:02:55.3]} 13. e5 {[%clk 0:03:01.7]} 13... Ne8 {[%clk 0:02:52.7]} 14.
cxd5 {[%clk 0:03:00.8]} 14... cxd5 {[%clk 0:02:52.2]} 15. Qd3 {[%clk 0:03:00.8]}
15... Nc7 {[%clk 0:02:51.4]} 16. Rac1 {[%clk 0:02:56.6]} 16... Nb8 {[%clk
0:02:46]} 17. h4 {[%clk 0:02:54.2]} 17... Na8 {[%clk 0:02:39.7]} 18. Nf1 {[%clk
0:02:51.1]} 18... Rxc1 {[%clk 0:02:39.4]} 19. Rxc1 {[%clk 0:02:50.8]} 19... Qd7
{[%clk 0:02:31.2]} 20. Ne3 {[%clk 0:02:49.3]} 20... Rc8 {[%clk 0:02:30.9]} 21.
Rc3 {[%clk 0:02:46.9]} 21... Rxc3 {[%clk 0:02:27.7]} 22. bxc3 {[%clk 0:02:47.8]}
22... Ba6 {[%clk 0:02:22.2]} 23. Qd2 {[%clk 0:02:47.1]} 23... Qb5 {[%clk
0:02:15.4]} 24. Ng4 {[%clk 0:02:43.5]} 24... Qd3 {[%clk 0:01:59.2]} 25. Qc1
{[%clk 0:02:40.5]} 25... Bf8 {[%clk 0:01:43.3]} 26. Bxh6 {[%clk 0:02:18.3]}
26... gxh6 {[%clk 0:01:39.8]} 27. Nf6+ {[%clk 0:02:18.4]} 27... Kh8 {[%clk
0:01:33.6]} 28. Qf4 {[%clk 0:02:18.4]} 28... Qf5 {[%clk 0:01:30]} 29. Qxf5
{[%clk 0:02:13.9]} 29... exf5 {[%clk 0:01:30.9]} 30. Nxd5 {[%clk 0:02:14.2]}
30... Bc4 {[%clk 0:01:27.2]} 31. Ne3 {[%clk 0:02:12.9]} 31... Bxa2 {[%clk
0:01:27.5]} 32. d5 {[%clk 0:02:08.7]} 32... Nd7 {[%clk 0:01:24]} 33. d6 {[%clk
0:02:05]} 33... a5 {[%clk 0:01:19.9]} 34. Nd4 {[%clk 0:01:45]} 34... Nxe5 {[%clk
0:01:16.3]} 35. Nexf5 {[%clk 0:01:39.7]} 35... a4 {[%clk 0:01:12.6]} 36. Bxa8
{[%clk 0:01:38.5]} 36... a3 {[%clk 0:01:12.2]} 37. f4 {[%clk 0:01:26.6]} 37...
Nd7 {[%clk 0:01:12.1]} 38. Bc6 {[%clk 0:01:21.4]} 38... Be6 {[%clk 0:01:09.1]}
39. Ne3 {[%clk 0:01:18.6]} 39... a2 {[%clk 0:01:06.6]} 40. Ndc2 {[%clk
0:01:18.4]} 40... Nc5 {[%clk 0:01:03.6]} 41. f5 {[%clk 0:01:13.8]} 41... Bc8
{[%clk 0:01:01.4]} 42. Bd5 {[%clk 0:01:10.5]} 42... Bxd6 {[%clk 0:01:00.6]} 43.
g4 {[%clk 0:01:07.5]} 43... Be5 {[%clk 0:00:54.6]} 44. Bxf7 {[%clk 0:01:00.9]}
44... Bxc3 {[%clk 0:00:47.9]} 45. Bxa2 {[%clk 0:01:00.4]} 45... Kg7 {[%clk
0:00:44.4]} 46. Nd5 {[%clk 0:00:56.1]} 46... Be5 {[%clk 0:00:43.2]} 47. Nxb6
{[%clk 0:00:53.4]} 47... Bb7 {[%clk 0:00:42.7]} 48. Bd5 {[%clk 0:00:50.6]} 48...
Ba6 {[%clk 0:00:40.1]} 49. Kg2 {[%clk 0:00:47.2]} 49... Nd3 {[%clk 0:00:38.2]}
50. Nd7 {[%clk 0:00:44.2]} 50... Bd6 {[%clk 0:00:33.1]} 51. f6+ {[%clk
0:00:44.1]} 51... Kg6 {[%clk 0:00:28.9]} 52. Be4+ {[%clk 0:00:31.2]} 52... Kf7
{[%clk 0:00:28]} 53. Ne3 {[%clk 0:00:31.3]} 53... Nf4+ {[%clk 0:00:24.2]} 54.
Kf3 {[%clk 0:00:29.5]} 54... Be2+ {[%clk 0:00:24.1]} 55. Kf2 {[%clk 0:00:29.6]}
55... Bb5 {[%clk 0:00:23.7]} 56. Nf5 {[%clk 0:00:26.8]} 56... Bxd7 {[%clk
0:00:21.6]} 57. Nxd6+ {[%clk 0:00:24]} 57... Kxf6 {[%clk 0:00:21.9]} 58. Kf3
{[%clk 0:00:23.2]} 58... Ne6 {[%clk 0:00:16.5]} 59. Bf5 {[%clk 0:00:17.4]} 59...
Ba4 {[%clk 0:00:16.7]} 60. Ne4+ {[%clk 0:00:16.2]} 60... Ke5 {[%clk 0:00:16.5]}
61. Bxe6 {[%clk 0:00:15.1]} 61... Kxe6 {[%clk 0:00:15.8]} 62. Nc5+ {[%clk
0:00:15.1]} 62... Ke5 {[%clk 0:00:15.2]} 63. Nxa4 {[%clk 0:00:16]} 63... Kf6
{[%clk 0:00:16.1]} 64. Nc3 {[%clk 0:00:16.4]} 64... Kg6 {[%clk 0:00:17]} 65. Ne4
{[%clk 0:00:16.9]} 65... h5 {[%clk 0:00:17.9]} 66. g5 {[%clk 0:00:17]} 66... Kf5
{[%clk 0:00:18.3]} 67. Ng3+ {[%clk 0:00:15.9]} 1-0